[Event "Late-Titled-Tuesday-Blitz-September-26-2023"]
[Site "Chess.com"]
[Date "2023.09.26"]
[Round "11"]
[White "Korchmar_Vasiliy"]
[Black "reevecanada"]
[Result "0-1"]
[WhiteElo "2691"]
[BlackElo "2557"]
[TimeControl "180+1"]
[EndTime "16:00:52 PDT"]
[Termination "reevecanada won on time"]

1. e4 {[%clk 0:03:00.9]} 1... c5 {[%clk 0:02:59.3]} 2. d4 {[%clk 0:03:01]} 2...
cxd4 {[%clk 0:02:59]} 3. Qxd4 {[%clk 0:03:01.9]} 3... Nc6 {[%clk 0:02:58.2]} 4.
Qd3 {[%clk 0:03:02.6]} 4... g6 {[%clk 0:02:58.6]} 5. Nc3 {[%clk 0:03:03.3]} 5...
Bg7 {[%clk 0:02:59.1]} 6. Nf3 {[%clk 0:03:04]} 6... d6 {[%clk 0:02:59.6]} 7. Be2
{[%clk 0:03:04.6]} 7... Nf6 {[%clk 0:02:59.8]} 8. O-O {[%clk 0:03:05.2]} 8...
Nd7 {[%clk 0:03:00.4]} 9. Bg5 {[%clk 0:02:40.2]} 9... O-O {[%clk 0:02:58.1]} 10.
Qe3 {[%clk 0:02:38.8]} 10... Nde5 {[%clk 0:02:49.7]} 11. Nxe5 {[%clk 0:02:37.3]}
11... Bxe5 {[%clk 0:02:50.6]} 12. Rad1 {[%clk 0:02:30.7]} 12... Qa5 {[%clk
0:02:39.5]} 13. Nd5 {[%clk 0:02:18.1]} 13... Re8 {[%clk 0:02:38.8]} 14. c3
{[%clk 0:02:08.8]} 14... Be6 {[%clk 0:02:28.2]} 15. f4 {[%clk 0:02:05.2]} 15...
Bg7 {[%clk 0:02:27.1]} 16. f5 {[%clk 0:02:01.5]} 16... gxf5 {[%clk 0:02:25.8]}
17. Bh6 {[%clk 0:01:55.1]} 17... Ne5 {[%clk 0:01:39.5]} 18. b4 {[%clk
0:01:32.4]} 18... Qxa2 {[%clk 0:01:30.3]} 19. Rd2 {[%clk 0:00:44.6]} 19... Qb3
{[%clk 0:00:53.8]} 20. Bxg7 {[%clk 0:00:44.9]} 20... Kxg7 {[%clk 0:00:52.6]} 21.
Nc7 {[%clk 0:00:45.3]} 21... fxe4 {[%clk 0:00:41.4]} 22. Rd4 {[%clk 0:00:27.5]}
22... Rec8 {[%clk 0:00:35.1]} 23. Nxa8 {[%clk 0:00:26.6]} 23... Rxa8 {[%clk
0:00:32.1]} 24. Rxe4 {[%clk 0:00:26.7]} 24... Rc8 {[%clk 0:00:31.1]} 25. Rxe5
{[%clk 0:00:16.5]} 25... dxe5 {[%clk 0:00:30.6]} 26. Qxe5+ {[%clk 0:00:17.4]}
26... f6 {[%clk 0:00:30.3]} 27. Qg3+ {[%clk 0:00:09.9]} 27... Kh8 {[%clk
0:00:30]} 28. Qe3 {[%clk 0:00:04.4]} 28... Rxc3 {[%clk 0:00:25.9]} 29. Qxa7
{[%clk 0:00:04.5]} 29... Qxb4 {[%clk 0:00:24.9]} 30. Bf3 {[%clk 0:00:02.8]}
30... Rc7 {[%clk 0:00:18.8]} 31. Qb8+ {[%clk 0:00:02.8]} 31... Rc8 {[%clk
0:00:18.9]} 32. Qg3 {[%clk 0:00:01.8]} 32... Qc5+ {[%clk 0:00:18.8]} 33. Kh1
{[%clk 0:00:01.7]} 33... b5 {[%clk 0:00:19.3]} 34. Re1 {[%clk 0:00:02.2]} 34...
Qd6 {[%clk 0:00:18]} 35. Qxd6 {[%clk 0:00:01.8]} 35... exd6 {[%clk 0:00:18.6]}
36. h3 {[%clk 0:00:02.5]} 36... Bg8 {[%clk 0:00:17.4]} 37. Re7 {[%clk
0:00:02.8]} 37... b4 {[%clk 0:00:15.8]} 38. Rb7 {[%clk 0:00:02.8]} 38... b3
{[%clk 0:00:16.2]} 39. Kh2 {[%clk 0:00:02.7]} 39... Rc2 {[%clk 0:00:16]} 40. Rb8
{[%clk 0:00:02.7]} 40... Rd2 {[%clk 0:00:14.7]} 41. Bg4 {[%clk 0:00:01.4]} 41...
Kg7 {[%clk 0:00:14.6]} 42. Bf5 {[%clk 0:00:01.5]} 42... Bd5 {[%clk 0:00:13.9]}
43. Rd8 {[%clk 0:00:01.5]} 43... Rxg2+ {[%clk 0:00:13.8]} 44. Kh1 {[%clk
0:00:01.5]} 44... Rg5+ {[%clk 0:00:14]} 0-1

[Event "Late-Titled-Tuesday-Blitz-September-26-2023"]
[Site "Chess.com"]
[Date "2023.09.26"]
[Round "11"]
[White "victormago"]
[Black "traack"]
[Result "1/2-1/2"]
[WhiteElo "2487"]
[BlackElo "2394"]
[TimeControl "180+1"]
[EndTime "16:00:55 PDT"]
[Termination "Game drawn - insufficient material"]

1. d4 {[%clk 0:02:59.6]} 1... Nf6 {[%clk 0:02:53.5]} 2. c4 {[%clk 0:02:59.4]}
2... c5 {[%clk 0:02:50.9]} 3. d5 {[%clk 0:02:59]} 3... b5 {[%clk 0:02:50.1]} 4.
cxb5 {[%clk 0:02:59.1]} 4... a6 {[%clk 0:02:49.7]} 5. bxa6 {[%clk 0:02:59.1]}
5... g6 {[%clk 0:02:48.6]} 6. Nc3 {[%clk 0:02:58.9]} 6... Bg7 {[%clk 0:02:48.8]}
7. Nf3 {[%clk 0:02:59]} 7... O-O {[%clk 0:02:46.8]} 8. g3 {[%clk 0:02:59.5]}
8... Bxa6 {[%clk 0:02:41.3]} 9. Bg2 {[%clk 0:02:59.4]} 9... d6 {[%clk
0:02:40.7]} 10. O-O {[%clk 0:02:59.3]} 10... Ne8 {[%clk 0:02:35.9]} 11. Qc2
{[%clk 0:02:58.8]} 11... Nc7 {[%clk 0:02:35.9]} 12. Rd1 {[%clk 0:02:58.7]} 12...
Nb5 {[%clk 0:02:36]} 13. Nxb5 {[%clk 0:02:58.5]} 13... Bxb5 {[%clk 0:02:36.2]}
14. e4 {[%clk 0:02:50.3]} 14... Na6 {[%clk 0:02:34.3]} 15. Bd2 {[%clk
0:02:44.4]} 15... Nb4 {[%clk 0:02:28.8]} 16. Bxb4 {[%clk 0:02:44]} 16... cxb4
{[%clk 0:02:22.5]} 17. Nd4 {[%clk 0:02:43.6]} 17... Ba4 {[%clk 0:02:12.2]} 18.
b3 {[%clk 0:02:41.4]} 18... Bd7 {[%clk 0:02:12.6]} 19. Rac1 {[%clk 0:02:33.9]}
19... Qb6 {[%clk 0:02:12.2]} 20. Nc6 {[%clk 0:02:31.9]} 20... Bxc6 {[%clk
0:02:10.4]} 21. dxc6 {[%clk 0:02:30.8]} 21... Rfc8 {[%clk 0:02:05.5]} 22. e5
{[%clk 0:02:24]} 22... Bxe5 {[%clk 0:02:04.4]} 23. Qe2 {[%clk 0:02:21.1]} 23...
Rc7 {[%clk 0:01:59.8]} 24. Kh1 {[%clk 0:02:19.3]} 24... Bc3 {[%clk 0:01:58]} 25.
h4 {[%clk 0:02:13.7]} 25... h5 {[%clk 0:01:55.5]} 26. Rc2 {[%clk 0:02:02.5]}
26... Rd8 {[%clk 0:01:49.7]} 27. g4 {[%clk 0:02:01.3]} 27... hxg4 {[%clk
0:01:48.2]} 28. Qxg4 {[%clk 0:02:01.4]} 28... Rxc6 {[%clk 0:01:47.5]} 29. Bxc6
{[%clk 0:01:59.6]} 29... Qxc6+ {[%clk 0:01:47.1]} 30. Kg1 {[%clk 0:02:00.2]}
30... Qc5 {[%clk 0:01:41.9]} 31. Rd3 {[%clk 0:01:52]} 31... Kg7 {[%clk
0:01:37.2]} 32. a3 {[%clk 0:01:47.1]} 32... Rb8 {[%clk 0:01:10.2]} 33. Qf3
{[%clk 0:01:24]} 33... Qe5 {[%clk 0:00:59]} 34. axb4 {[%clk 0:01:22.7]} 34...
Bxb4 {[%clk 0:00:58.5]} 35. Re2 {[%clk 0:01:20.3]} 35... Qa1+ {[%clk 0:00:54.1]}
36. Kg2 {[%clk 0:01:20.5]} 36... e6 {[%clk 0:00:42.9]} 37. Re4 {[%clk
0:01:13.7]} 37... Bc5 {[%clk 0:00:42.5]} 38. Rf4 {[%clk 0:01:08.6]} 38... Qa7
{[%clk 0:00:42.4]} 39. h5 {[%clk 0:01:06.5]} 39... Rg8 {[%clk 0:00:39.1]} 40.
hxg6 {[%clk 0:01:05.2]} 40... fxg6 {[%clk 0:00:26]} 41. b4 {[%clk 0:00:56.5]}
41... e5 {[%clk 0:00:15]} 42. Rg4 {[%clk 0:00:55.8]} 42... Rf8 {[%clk 0:00:15]}
43. Qe4 {[%clk 0:00:48]} 43... Rxf2+ {[%clk 0:00:13.1]} 44. Kg3 {[%clk
0:00:47.8]} 44... Qf7 {[%clk 0:00:09.1]} 45. bxc5 {[%clk 0:00:47.3]} 45... Rf1
{[%clk 0:00:07.4]} 46. Qxg6+ {[%clk 0:00:26.6]} 46... Qxg6 {[%clk 0:00:07.4]}
47. Rxg6+ {[%clk 0:00:27.2]} 47... Kxg6 {[%clk 0:00:08.3]} 48. cxd6 {[%clk
0:00:27.5]} 48... Rf8 {[%clk 0:00:08.1]} 49. d7 {[%clk 0:00:26.2]} 49... Rd8
{[%clk 0:00:08.6]} 50. Kf3 {[%clk 0:00:26.5]} 50... Kf6 {[%clk 0:00:08.9]} 51.
Ke4 {[%clk 0:00:25.5]} 51... Ke6 {[%clk 0:00:09.2]} 52. Rd5 {[%clk 0:00:25.8]}
52... Rxd7 {[%clk 0:00:09.3]} 53. Rxd7 {[%clk 0:00:26.1]} 53... Kxd7 {[%clk
0:00:09.5]} 54. Kxe5 {[%clk 0:00:26.3]} 1/2-1/2

[Event "Late-Titled-Tuesday-Blitz-September-26-2023"]
[Site "Chess.com"]
[Date "2023.09.26"]
[Round "11"]
[White "GMBenjaminBok"]
[Black "OparinGrigoriy"]
[Result "0-1"]
[WhiteElo "2957"]
[BlackElo "2988"]
[TimeControl "180+1"]
[EndTime "16:01:00 PDT"]
[Termination "OparinGrigoriy won on time"]

1. d4 {[%clk 0:03:00.9]} 1... Nf6 {[%clk 0:03:00.7]} 2. c4 {[%clk 0:03:00.5]}
2... e6 {[%clk 0:03:01.5]} 3. Nc3 {[%clk 0:03:00.2]} 3... Bb4 {[%clk 0:03:02.2]}
4. Qc2 {[%clk 0:03:00.3]} 4... d5 {[%clk 0:03:02.3]} 5. a3 {[%clk 0:03:00.3]}
5... Bxc3+ {[%clk 0:03:02]} 6. Qxc3 {[%clk 0:03:01.2]} 6... dxc4 {[%clk
0:02:59.4]} 7. Qxc4 {[%clk 0:03:02.1]} 7... b6 {[%clk 0:02:59.6]} 8. Nf3 {[%clk
0:02:46.6]} 8... Ba6 {[%clk 0:02:56]} 9. Qa4+ {[%clk 0:02:46.1]} 9... Qd7 {[%clk
0:02:54.6]} 10. Qc2 {[%clk 0:02:46.5]} 10... O-O {[%clk 0:02:52.6]} 11. Bg5
{[%clk 0:02:45.7]} 11... c5 {[%clk 0:02:51.3]} 12. Bxf6 {[%clk 0:02:40.8]} 12...
gxf6 {[%clk 0:02:52.2]} 13. dxc5 {[%clk 0:02:39.2]} 13... Rc8 {[%clk 0:02:52.3]}
14. Rd1 {[%clk 0:02:39.2]} 14... Qc6 {[%clk 0:02:40.3]} 15. e3 {[%clk
0:02:20.7]} 15... Bxf1 {[%clk 0:02:37.2]} 16. Kxf1 {[%clk 0:02:18]} 16... Nd7
{[%clk 0:02:31.2]} 17. Nd4 {[%clk 0:01:39.1]} 17... Qxc5 {[%clk 0:02:22.6]} 18.
Qxc5 {[%clk 0:01:34.9]} 18... Nxc5 {[%clk 0:02:23.5]} 19. Ke2 {[%clk 0:01:32.1]}
19... f5 {[%clk 0:02:20.9]} 20. f3 {[%clk 0:01:25.2]} 20... Kg7 {[%clk
0:02:14.8]} 21. Rd2 {[%clk 0:01:22]} 21... Kf6 {[%clk 0:02:12.6]} 22. Rc2 {[%clk
0:00:42.1]} 22... e5 {[%clk 0:02:00.5]} 23. Nb5 {[%clk 0:00:40.3]} 23... Nb3
{[%clk 0:02:00.9]} 24. Nc7 {[%clk 0:00:25.7]} 24... Rab8 {[%clk 0:02:01.3]} 25.
Rd1 {[%clk 0:00:22.1]} 25... Rd8 {[%clk 0:01:58.8]} 26. Nd5+ {[%clk 0:00:18.1]}
26... Kg7 {[%clk 0:01:56.9]} 27. Rc3 {[%clk 0:00:17.1]} 27... Nc5 {[%clk
0:01:57]} 28. b4 {[%clk 0:00:17.2]} 28... Ne6 {[%clk 0:01:52.2]} 29. g3 {[%clk
0:00:06.7]} 29... Rbc8 {[%clk 0:01:49.5]} 30. Rxc8 {[%clk 0:00:06.1]} 30... Rxc8
{[%clk 0:01:49.8]} 31. Ne7 {[%clk 0:00:07]} 31... Rc2+ {[%clk 0:01:40.3]} 32.
Rd2 {[%clk 0:00:07.2]} 32... Rc1 {[%clk 0:01:40.2]} 33. Nxf5+ {[%clk 0:00:07]}
33... Kf6 {[%clk 0:01:40.8]} 34. Nd6 {[%clk 0:00:06.9]} 34... Ra1 {[%clk
0:01:37.4]} 35. Nb5 {[%clk 0:00:03.7]} 35... a6 {[%clk 0:01:36.3]} 36. Nc3
{[%clk 0:00:04.1]} 36... b5 {[%clk 0:01:29.7]} 37. Ra2 {[%clk 0:00:04.1]} 37...
Rh1 {[%clk 0:01:28.9]} 38. h4 {[%clk 0:00:04.2]} 38... Ke7 {[%clk 0:01:26.8]}
39. Kd3 {[%clk 0:00:03.8]} 39... f5 {[%clk 0:01:25.4]} 40. Nd5+ {[%clk
0:00:03.1]} 40... Kd6 {[%clk 0:01:25.8]} 41. e4 {[%clk 0:00:03.6]} 41... Nd4
{[%clk 0:01:22.4]} 42. Ne3 {[%clk 0:00:03.7]} 42... Ke6 {[%clk 0:01:04.6]} 43.
Nxf5 {[%clk 0:00:03.4]} 43... Nxf5 {[%clk 0:01:05.5]} 44. exf5+ {[%clk
0:00:04.1]} 44... Kxf5 {[%clk 0:01:06.2]} 45. Ke3 {[%clk 0:00:04.6]} 45... h5
{[%clk 0:01:05.1]} 46. Rd2 {[%clk 0:00:04]} 46... Ra1 {[%clk 0:01:03.5]} 47. Rd3
{[%clk 0:00:04.4]} 47... Ra2 {[%clk 0:01:03.7]} 48. Rc3 {[%clk 0:00:04.3]} 48...
Rg2 {[%clk 0:01:00.9]} 49. Rc6 {[%clk 0:00:03.3]} 49... Rxg3 {[%clk 0:01:00.8]}
50. Rxa6 {[%clk 0:00:03.5]} 50... e4 {[%clk 0:01:01.4]} 51. Ra5 {[%clk
0:00:03.9]} 51... Rxf3+ {[%clk 0:01:01.8]} 52. Ke2 {[%clk 0:00:04.4]} 52... Kf4
{[%clk 0:00:57.4]} 53. Rxb5 {[%clk 0:00:04.7]} 53... Rxa3 {[%clk 0:00:58.1]} 54.
Rxh5 {[%clk 0:00:05]} 54... Ra2+ {[%clk 0:00:58.7]} 55. Kd1 {[%clk 0:00:05.5]}
55... Ke3 {[%clk 0:00:53.1]} 56. b5 {[%clk 0:00:05.8]} 56... Kd3 {[%clk
0:00:45.9]} 57. Kc1 {[%clk 0:00:05.6]} 57... e3 {[%clk 0:00:45.5]} 58. Rd5+
{[%clk 0:00:05.8]} 58... Ke4 {[%clk 0:00:41.3]} 59. Rd8 {[%clk 0:00:05.9]} 59...
e2 {[%clk 0:00:41.8]} 60. Re8+ {[%clk 0:00:05.7]} 60... Kd3 {[%clk 0:00:42.4]}
61. b6 {[%clk 0:00:02.3]} 61... Ra1+ {[%clk 0:00:40.8]} 62. Kb2 {[%clk
0:00:02.8]} 62... e1=Q {[%clk 0:00:41.7]} 63. Rxe1 {[%clk 0:00:02.6]} 63... Rxe1
{[%clk 0:00:42.6]} 64. b7 {[%clk 0:00:02.1]} 64... Re8 {[%clk 0:00:43]} 0-1

[Event "Late-Titled-Tuesday-Blitz-September-26-2023"]
[Site "Chess.com"]
[Date "2023.09.26"]
[Round "11"]
[White "RonArtest77"]
[Black "bylavochka"]
[Result "1-0"]
[WhiteElo "2507"]
[BlackElo "2338"]
[TimeControl "180+1"]
[EndTime "16:01:02 PDT"]
[Termination "RonArtest77 won on time"]

1. d4 {[%clk 0:02:59.7]} 1... Nf6 {[%clk 0:02:59.2]} 2. Bg5 {[%clk 0:02:59.8]}
2... g6 {[%clk 0:02:55]} 3. Bxf6 {[%clk 0:02:59.3]} 3... exf6 {[%clk 0:02:55.1]}
4. e3 {[%clk 0:03:00.2]} 4... Bg7 {[%clk 0:02:54.5]} 5. g3 {[%clk 0:03:00.9]}
5... O-O {[%clk 0:02:54.4]} 6. Bg2 {[%clk 0:03:01.6]} 6... c6 {[%clk 0:02:46.8]}
7. Ne2 {[%clk 0:03:01.5]} 7... d5 {[%clk 0:02:47]} 8. O-O {[%clk 0:03:02.1]}
8... Re8 {[%clk 0:02:38]} 9. Nd2 {[%clk 0:03:01.2]} 9... Nd7 {[%clk 0:02:33.8]}
10. Rc1 {[%clk 0:03:00.8]} 10... Nb6 {[%clk 0:02:33.1]} 11. b3 {[%clk
0:02:58.5]} 11... Bf5 {[%clk 0:01:51.8]} 12. c4 {[%clk 0:02:55.7]} 12... Qd7
{[%clk 0:01:51.1]} 13. Nf4 {[%clk 0:02:48]} 13... dxc4 {[%clk 0:01:38.6]} 14.
bxc4 {[%clk 0:02:46.2]} 14... Bg4 {[%clk 0:01:25.2]} 15. Bf3 {[%clk 0:02:42.9]}
15... Bxf3 {[%clk 0:01:19.3]} 16. Qxf3 {[%clk 0:02:43.8]} 16... Rad8 {[%clk
0:01:15.4]} 17. Rb1 {[%clk 0:02:39.3]} 17... f5 {[%clk 0:00:46.3]} 18. c5 {[%clk
0:02:24]} 18... Na4 {[%clk 0:00:28.7]} 19. Nc4 {[%clk 0:02:21.5]} 19... Nc3
{[%clk 0:00:23.3]} 20. Rb3 {[%clk 0:02:20.3]} 20... Ne4 {[%clk 0:00:12.5]} 21.
Rfb1 {[%clk 0:02:19.5]} 21... Rb8 {[%clk 0:00:12.1]} 22. Qe2 {[%clk 0:01:54]}
22... Qc7 {[%clk 0:00:12.1]} 23. Qb2 {[%clk 0:01:50.7]} 23... b6 {[%clk
0:00:07.8]} 24. cxb6 {[%clk 0:01:45.2]} 24... axb6 {[%clk 0:00:07.4]} 25. Rxb6
{[%clk 0:01:45.8]} 25... Rxb6 {[%clk 0:00:07]} 26. Qxb6 {[%clk 0:01:46.3]} 26...
Qxb6 {[%clk 0:00:05.4]} 27. Rxb6 {[%clk 0:01:46.3]} 27... c5 {[%clk 0:00:06]}
28. d5 {[%clk 0:01:41.3]} 28... Nc3 {[%clk 0:00:04.6]} 29. d6 {[%clk 0:01:36.4]}
29... Rd8 {[%clk 0:00:03.9]} 30. Nd3 {[%clk 0:01:18.5]} 30... Bf8 {[%clk
0:00:01.6]} 31. Nxc5 {[%clk 0:01:11.3]} 31... Nxa2 {[%clk 0:00:02.2]} 32. Nb7
{[%clk 0:01:01.2]} 32... Rd7 {[%clk 0:00:02.5]} 33. Ne5 {[%clk 0:00:55.9]} 33...
Rxb7 {[%clk 0:00:02.9]} 34. Rxb7 {[%clk 0:00:56.5]} 34... Bxd6 {[%clk
0:00:03.4]} 35. Nxf7 {[%clk 0:00:57.2]} 35... Bf8 {[%clk 0:00:02.6]} 36. Nd8
{[%clk 0:00:52.1]} 36... Nb4 {[%clk 0:00:02.8]} 37. Ne6 {[%clk 0:00:52]} 37...
Bd6 {[%clk 0:00:03.5]} 38. Rd7 {[%clk 0:00:48.4]} 38... Be5 {[%clk 0:00:02]} 39.
Ng5 {[%clk 0:00:45.6]} 39... h6 {[%clk 0:00:01.8]} 40. Nf7 {[%clk 0:00:44.4]}
40... Bg7 {[%clk 0:00:02.4]} 41. Nd6 {[%clk 0:00:43.6]} 41... Nc6 {[%clk
0:00:02.7]} 42. Rc7 {[%clk 0:00:42.9]} 42... Ne5 {[%clk 0:00:02.7]} 43. Kg2
{[%clk 0:00:41]} 43... Bf8 {[%clk 0:00:02.4]} 44. Ne8 {[%clk 0:00:39.5]} 44...
Nf7 {[%clk 0:00:02.9]} 45. Nf6+ {[%clk 0:00:35.4]} 45... Kg7 {[%clk 0:00:03.3]}
46. Nd7 {[%clk 0:00:35]} 46... Kg8 {[%clk 0:00:03.9]} 47. Ra7 {[%clk 0:00:33.7]}
47... Ng5 {[%clk 0:00:04.3]} 48. Nf6+ {[%clk 0:00:33.4]} 48... Kh8 {[%clk
0:00:02.9]} 49. h4 {[%clk 0:00:31.7]} 49... Bg7 {[%clk 0:00:01.4]} 50. Ra8+
{[%clk 0:00:28.7]} 50... Bf8 {[%clk 0:00:01.9]} 51. hxg5 {[%clk 0:00:27.7]}
51... Kg7 {[%clk 0:00:02.8]} 52. gxh6+ {[%clk 0:00:26.9]} 52... Kxf6 {[%clk
0:00:03.1]} 53. Rxf8+ {[%clk 0:00:26]} 1-0

[Event "Late-Titled-Tuesday-Blitz-September-26-2023"]
[Site "Chess.com"]
[Date "2023.09.26"]
[Round "11"]
[White "Kostukov_Alex"]
[Black "ritanovikova"]
[Result "1-0"]
[WhiteElo "2400"]
[BlackElo "2189"]
[TimeControl "180+1"]
[EndTime "16:01:05 PDT"]
[Termination "Kostukov_Alex won on time"]

1. g3 {[%clk 0:02:55.3]} 1... e5 {[%clk 0:02:59]} 2. Bg2 {[%clk 0:02:55.4]} 2...
Nf6 {[%clk 0:02:59.8]} 3. c4 {[%clk 0:02:55.6]} 3... c6 {[%clk 0:02:57]} 4. Nf3
{[%clk 0:02:48.8]} 4... Qc7 {[%clk 0:02:54.8]} 5. O-O {[%clk 0:02:47.9]} 5... d5
{[%clk 0:02:54.6]} 6. cxd5 {[%clk 0:02:46.6]} 6... cxd5 {[%clk 0:02:55.4]} 7. d4
{[%clk 0:02:46.8]} 7... e4 {[%clk 0:02:55.1]} 8. Ne5 {[%clk 0:02:46.9]} 8... Nc6
{[%clk 0:02:53.8]} 9. Nxc6 {[%clk 0:02:40]} 9... Qxc6 {[%clk 0:02:52.5]} 10. Bg5
{[%clk 0:02:32.8]} 10... Be7 {[%clk 0:02:51.4]} 11. Nc3 {[%clk 0:02:24.3]} 11...
h6 {[%clk 0:02:48.1]} 12. Bxf6 {[%clk 0:02:23]} 12... Bxf6 {[%clk 0:02:48.9]}
13. e3 {[%clk 0:02:20.2]} 13... O-O {[%clk 0:02:47.1]} 14. f3 {[%clk 0:02:20.5]}
14... exf3 {[%clk 0:02:37.8]} 15. Qxf3 {[%clk 0:02:20.3]} 15... Be6 {[%clk
0:02:36.7]} 16. Nxd5 {[%clk 0:02:19.6]} 16... Bxd5 {[%clk 0:02:34.1]} 17. Qxd5
{[%clk 0:02:20.5]} 17... Qe8 {[%clk 0:02:25.4]} 18. Be4 {[%clk 0:02:09.5]} 18...
Bg5 {[%clk 0:01:48.2]} 19. Rae1 {[%clk 0:01:53.8]} 19... Rb8 {[%clk 0:01:45.4]}
20. h4 {[%clk 0:01:48.9]} 20... Be7 {[%clk 0:01:22.4]} 21. h5 {[%clk 0:01:30.6]}
21... Qc8 {[%clk 0:01:10.5]} 22. Bg6 {[%clk 0:01:24.8]} 22... Bf6 {[%clk
0:01:08]} 23. Rxf6 {[%clk 0:01:12.3]} 23... gxf6 {[%clk 0:01:07.5]} 24. Bf5
{[%clk 0:00:59.4]} 24... Qc7 {[%clk 0:01:06.7]} 25. Qf3 {[%clk 0:00:54.3]} 25...
Qd6 {[%clk 0:00:54]} 26. Bd3 {[%clk 0:00:47.5]} 26... Kh8 {[%clk 0:00:48.2]} 27.
Kg2 {[%clk 0:00:43.4]} 27... Rg8 {[%clk 0:00:47.6]} 28. Rh1 {[%clk 0:00:37.2]}
28... Rg5 {[%clk 0:00:33.8]} 29. Rh3 {[%clk 0:00:20.5]} 29... Rbg8 {[%clk
0:00:32.6]} 30. Kf2 {[%clk 0:00:20.4]} 30... a6 {[%clk 0:00:22.1]} 31. Qe4
{[%clk 0:00:18.1]} 31... f5 {[%clk 0:00:21.7]} 32. Qf3 {[%clk 0:00:16.9]} 32...
Qe6 {[%clk 0:00:16]} 33. b3 {[%clk 0:00:15.8]} 33... a5 {[%clk 0:00:15.6]} 34.
Bc4 {[%clk 0:00:14.7]} 34... Qe7 {[%clk 0:00:14.4]} 35. Qf4 {[%clk 0:00:13.7]}
35... Qf6 {[%clk 0:00:13.4]} 36. a4 {[%clk 0:00:12.8]} 36... b6 {[%clk
0:00:13.7]} 37. Qc7 {[%clk 0:00:11.7]} 37... Qg7 {[%clk 0:00:10]} 38. Qxf7
{[%clk 0:00:10.7]} 38... Rxg3 {[%clk 0:00:10.4]} 39. Qxg7+ {[%clk 0:00:09.9]}
39... R3xg7 {[%clk 0:00:11.2]} 40. Bxg8 {[%clk 0:00:09]} 40... Rxg8 {[%clk
0:00:10.9]} 41. Rg3 {[%clk 0:00:09.5]} 41... Rc8 {[%clk 0:00:10.5]} 42. Rg6
{[%clk 0:00:09.5]} 42... Rc2+ {[%clk 0:00:08]} 43. Kf3 {[%clk 0:00:09.5]} 43...
Rc3 {[%clk 0:00:08.2]} 44. Rxh6+ {[%clk 0:00:09.7]} 44... Kg7 {[%clk 0:00:07.9]}
45. Rxb6 {[%clk 0:00:10.6]} 1-0

[Event "Late-Titled-Tuesday-Blitz-September-26-2023"]
[Site "Chess.com"]
[Date "2023.09.26"]
[Round "11"]
[White "vanyakuba"]
[Black "AlexandraBotez"]
[Result "1-0"]
[WhiteElo "2378"]
[BlackElo "2245"]
[TimeControl "180+1"]
[EndTime "16:01:05 PDT"]
[Termination "vanyakuba won by resignation"]

1. e4 {[%clk 0:02:59.7]} 1... e6 {[%clk 0:02:56.8]} 2. d4 {[%clk 0:02:59.1]}
2... d5 {[%clk 0:02:56.8]} 3. exd5 {[%clk 0:02:55.1]} 3... exd5 {[%clk
0:02:50.3]} 4. Nf3 {[%clk 0:02:27.6]} 4... Bd6 {[%clk 0:02:46.8]} 5. c4 {[%clk
0:02:24.2]} 5... c6 {[%clk 0:02:43.2]} 6. Bd3 {[%clk 0:02:23.8]} 6... Ne7 {[%clk
0:02:42.4]} 7. O-O {[%clk 0:02:22.9]} 7... h6 {[%clk 0:02:42]} 8. h3 {[%clk
0:02:20.2]} 8... Be6 {[%clk 0:02:37.9]} 9. c5 {[%clk 0:01:51.6]} 9... Bc7 {[%clk
0:02:37.1]} 10. b4 {[%clk 0:01:52.3]} 10... Qd7 {[%clk 0:02:37]} 11. Ne5 {[%clk
0:01:39.1]} 11... Bxe5 {[%clk 0:02:33.3]} 12. dxe5 {[%clk 0:01:40]} 12... a5
{[%clk 0:02:33.7]} 13. b5 {[%clk 0:01:30.7]} 13... cxb5 {[%clk 0:02:33]} 14. Nc3
{[%clk 0:01:30.6]} 14... b4 {[%clk 0:02:28.7]} 15. Nb5 {[%clk 0:01:28.2]} 15...
O-O {[%clk 0:02:26.2]} 16. Nd6 {[%clk 0:01:10.8]} 16... Nf5 {[%clk 0:01:53]} 17.
Qh5 {[%clk 0:00:51.6]} 17... Nxd6 {[%clk 0:01:47.5]} 18. cxd6 {[%clk 0:00:46.4]}
18... Nc6 {[%clk 0:01:42.5]} 19. f4 {[%clk 0:00:41.9]} 19... Nd4 {[%clk
0:01:35.3]} 20. f5 {[%clk 0:00:36.9]} 20... Bxf5 {[%clk 0:01:11.7]} 21. Bxf5
{[%clk 0:00:35.5]} 21... Nxf5 {[%clk 0:01:10.9]} 22. Qxf5 {[%clk 0:00:35.3]}
22... Qb5 {[%clk 0:01:03.3]} 23. Bxh6 {[%clk 0:00:23.5]} 23... Qc5+ {[%clk
0:00:49.3]} 24. Kh1 {[%clk 0:00:22.8]} 24... gxh6 {[%clk 0:00:44.3]} 25. Rf4
{[%clk 0:00:15.5]} 25... Kh8 {[%clk 0:00:42.8]} 26. Qf6+ {[%clk 0:00:14.2]}
26... Kh7 {[%clk 0:00:43.1]} 27. Qf5+ {[%clk 0:00:07.9]} 27... Kh8 {[%clk
0:00:43]} 28. Rg4 {[%clk 0:00:06]} 28... Rg8 {[%clk 0:00:35]} 29. Qf6+ {[%clk
0:00:05.7]} 29... Kh7 {[%clk 0:00:33.5]} 30. Qxf7+ {[%clk 0:00:05.8]} 30... Kh8
{[%clk 0:00:34]} 31. Qf6+ {[%clk 0:00:05.6]} 31... Kh7 {[%clk 0:00:34.5]} 32.
Qf5+ {[%clk 0:00:04.8]} 32... Kh8 {[%clk 0:00:33.5]} 33. Rf1 {[%clk 0:00:03.2]}
33... Qe3 {[%clk 0:00:22.3]} 34. Qf6+ {[%clk 0:00:03.1]} 34... Kh7 {[%clk
0:00:22.5]} 35. Qf5+ {[%clk 0:00:03.7]} 35... Kh8 {[%clk 0:00:22.3]} 36. e6
{[%clk 0:00:04.2]} 36... Rae8 {[%clk 0:00:17.8]} 37. e7 {[%clk 0:00:04.3]} 37...
Qe4 {[%clk 0:00:16.3]} 38. Qf6+ {[%clk 0:00:04.2]} 38... Kh7 {[%clk 0:00:16.4]}
39. Qf7+ {[%clk 0:00:04.7]} 39... Kh8 {[%clk 0:00:16.5]} 40. Rxg8+ {[%clk
0:00:04.6]} 40... Rxg8 {[%clk 0:00:15.9]} 41. Qxg8+ {[%clk 0:00:04.9]} 41...
Kxg8 {[%clk 0:00:15.8]} 42. Rf8+ {[%clk 0:00:05.8]} 42... Kg7 {[%clk 0:00:15.5]}
43. e8=Q {[%clk 0:00:06.7]} 43... Qxe8 {[%clk 0:00:11.1]} 44. Rxe8 {[%clk
0:00:06.5]} 44... d4 {[%clk 0:00:10.8]} 45. d7 {[%clk 0:00:07.2]} 45... d3
{[%clk 0:00:10.9]} 46. d8=Q {[%clk 0:00:08.1]} 46... b3 {[%clk 0:00:11.1]} 47.
axb3 {[%clk 0:00:07.9]} 47... d2 {[%clk 0:00:10.1]} 48. Qxd2 {[%clk 0:00:07.5]}
48... a4 {[%clk 0:00:10.2]} 49. Qd7+ {[%clk 0:00:07.3]} 49... Kg6 {[%clk
0:00:10.3]} 50. Re6+ {[%clk 0:00:07.6]} 50... Kg5 {[%clk 0:00:11.2]} 51. Qd5+
{[%clk 0:00:07.9]} 51... Kh4 {[%clk 0:00:11.6]} 52. Re4+ {[%clk 0:00:06.6]} 1-0